fUSD/lending_fUSD_20260617
["ID","MTS","AMOUNT","RATE_DAILY","PERIOD"]
[425239338,1781632246000,-500.0,0.00025467,2]
[425239336,1781632246000,-151.0,0.00025321,2]
[425239337,1781632246000,-936.27,0.00025398,7]
[425239335,1781632246000,-2405.55389863,0.00025321,2]
[425239332,1781632246000,-217.15233878,0.00025321,2]
[425239333,1781632246000,-200.0,0.00025321,2]
[425239331,1781632246000,-153.33214767,0.00025321,2]
[425239328,1781632246000,-200.0,0.0002525,2]
[425239339,1781632246000,-350.0,0.00025473,2]
[425239334,1781632246000,-242.15909246,0.00025321,2]
[425239330,1781632246000,-621.78829552,0.00025321,2]
[425239345,1781632246000,-700.0,0.00025657,2]
[425239340,1781632246000,-200.0,0.00025503,2]
[425239344,1781632246000,-152.0,0.0002565,4]
[425239342,1781632246000,-350.0,0.00025508,2]
[425239341,1781632246000,-200.0,0.00025503,2]
[425239346,1781632246000,-200.0,0.00025758,2]
[425239349,1781632246000,-25000.0,0.00025774,7]
[425239356,1781632246000,-225.18697532,0.00025869,2]
[425239348,1781632246000,-25000.0,0.00025765,7]
[425239347,1781632246000,-200.0,0.00025758,2]
[425239350,1781632246000,-207.49,0.00025782,2]
[425239355,1781632246000,-542.74990657,0.00025869,2]
[425239325,1781632246000,-627.22131,0.0002522,2]
[425239343,1781632246000,-654.42555149,0.00025515,2]
[425239329,1781632246000,-200.0,0.0002525,2]
[425239313,1781632246000,-794.35838667,0.00025,2]
[425239326,1781632246000,-627.22131,0.0002522,2]
[425239351,1781632246000,-25000.0,0.00025782,7]
[425239299,1781632246000,-229.09625852,0.00025,2]
[425239302,1781632246000,-214.24,0.00025,2]
[425239303,1781632246000,-200.0,0.00025,2]
[425239300,1781632246000,-1000.0,0.00025,2]
[425239310,1781632246000,-362.7170217,0.00025,2]
[425239301,1781632246000,-200.0,0.00025,2]
[425239307,1781632246000,-305.24074205,0.00025,2]
[425239308,1781632246000,-1853.86918073,0.00025,2]
[425239306,1781632246000,-434.10129498,0.00025,2]
[425239311,1781632246000,-336.41900411,0.00025,2]
[425239304,1781632246000,-432.86406734,0.00025,2]
[425239309,1781632246000,-2554.0,0.00025,2]
[425239312,1781632246000,-200.0,0.00025,2]
[425239323,1781632246000,-627.22131,0.0002522,2]
[425239314,1781632246000,-347.53,0.00025,2]
[425239315,1781632246000,-347.53,0.00025,2]
[425239318,1781632246000,-206.0,0.00025073,2]
[425239316,1781632246000,-347.53,0.00025,2]
[425239317,1781632246000,-441.70665361,0.00025,2]
[425239320,1781632246000,-674.0,0.0002521,5]
[425239321,1781632246000,-746.0,0.0002521,5]
[425239322,1781632246000,-627.22131,0.0002522,2]
[425239319,1781632246000,-300.0,0.000251,2]
[425239324,1781632246000,-627.22131,0.0002522,2]
[425239327,1781632246000,-627.22131,0.0002522,2]
[425239354,1781632246000,-25000.0,0.000258,7]
[425239352,1781632246000,-40138.37,0.00025786,2]
[425239363,1781632246000,-27490.47687194,0.00026,10]
[425239387,1781632246000,-2744.39,0.000268,2]
[425239385,1781632246000,-4250.65,0.000268,2]
[425239388,1781632246000,-452.02399939,0.00026861,2]
[425239391,1781632246000,-270.0455652,0.00026965,2]
[425239393,1781632246000,-151.0,0.00026965,2]
[425239403,1781632246000,-181.22753306,0.00027116,7]
[425239392,1781632246000,-2682.57183977,0.00026965,2]
[425239394,1781632246000,-152.0,0.00026972,6]
[425239397,1781632246000,-150.0,0.00027,7]
[425239401,1781632246000,-288.396368,0.00027031,7]
[425239395,1781632246000,-8745.0,0.00027,2]
[425239396,1781632246000,-150.0,0.00027,7]
[425239398,1781632246000,-150.0,0.00027,7]
[425239399,1781632246000,-173.0,0.00027,7]
[425239402,1781632246000,-151.83118803,0.00027104,7]
[425239404,1781632246000,-165.54459721,0.00027116,7]
[425239406,1781632246000,-213.66882423,0.00027118,7]
[425239407,1781632246000,-354.0,0.00027123,2]
[425239409,1781632246000,-730.0,0.00027137,2]
[425239412,1781632246000,-165.93032238,0.00027151,7]
[425239408,1781632246000,-233.02586463,0.00027136,2]
[425239410,1781632246000,-542.26695639,0.00027151,2]
[425239411,1781632246000,-216.90678255,0.00027151,2]
[425239405,1781632246000,-167.96120441,0.00027118,7]
[425239353,1781632246000,-25000.0,0.00025791,7]
[425239390,1781632246000,-200.0,0.00026965,2]
[425239386,1781632246000,-10558.15,0.000268,2]
[425239400,1781632246000,-500.0,0.00027018,2]
[425239383,1781632246000,-162.0,0.00026649,3]
[425239389,1781632246000,-242.15909246,0.00026965,2]
[425239413,1781632246000,-159.09050615,0.00027151,2]
[425239367,1781632246000,-200.0,0.00026015,2]
[425239368,1781632246000,-200.0,0.00026015,2]
[425239358,1781632246000,-251.11897888,0.00025869,2]
[425239359,1781632246000,-2494.55939288,0.00025869,2]
[425239357,1781632246000,-200.0,0.00025869,2]
[425239361,1781632246000,-350.0,0.00025877,2]
[425239360,1781632246000,-151.0,0.00025869,2]
[425239365,1781632246000,-550.0,0.00026,2]
[425239370,1781632246000,-962.0,0.00026047,5]
[425239380,1781632246000,-2586.85809042,0.00026417,2]
[425239371,1781632246000,-419.0,0.00026166,2]
[425239366,1781632246000,-235056.87734314,0.00026,2]
[425239378,1781632246000,-200.0,0.00026417,2]
[425239372,1781632246000,-6078.0,0.00026166,2]
[425239373,1781632246000,-285.0,0.00026194,7]
[425239377,1781632246000,-233.5188934,0.00026417,2]
[425239374,1781632246000,-160.0,0.00026206,3]
[425239375,1781632246000,-500.0,0.00026231,2]
[425239379,1781632246000,-260.4103811,0.00026417,2]
[425239376,1781632246000,-152.0,0.00026311,5]
[425239369,1781632246000,-162.37851493,0.00026027,3]
[425239381,1781632246000,-151.0,0.00026417,2]
[425239384,1781632246000,-7084.41,0.000268,2]
[425239382,1781632246000,-2739.45,0.00026575,7]
[425239452,1781632247000,-162.29747543,0.00027167,7]
[425239442,1781632247000,-188.73372065,0.00027163,7]
[425239453,1781632247000,-962.0,0.0002719,10]
[425239451,1781632247000,-206.79821912,0.00027167,7]
[425239450,1781632247000,-199.95344544,0.00027167,7]
[425239443,1781632247000,-166.35437295,0.00027163,7]
[425239449,1781632247000,-152.25413312,0.00027167,7]
[425239444,1781632247000,-189.95330258,0.00027163,7]
[425239445,1781632247000,-217.03678764,0.00027163,7]
[425239446,1781632247000,-178.20439403,0.00027163,7]
[425239458,1781632247000,-3121.78,0.0002736,7]
[425239457,1781632247000,-5406.9,0.0002736,2]
[425239459,1781632247000,-394.0,0.00027365,7]
[425239462,1781632247000,-4533.68641657,0.0002739,7]
[425239455,1781632247000,-150.0,0.00027273,7]
[425239454,1781632247000,-150.0,0.00027273,7]
[425239456,1781632247000,-350.0,0.0002733,2]
[425239461,1781632247000,-25000.0,0.00027382,7]
[425239460,1781632247000,-576.0,0.00027377,5]
[425239468,1781632247000,-500.0,0.00027397,2]
[425239469,1781632247000,-500.0,0.00027397,2]
[425239463,1781632247000,-25000.0,0.00027391,7]
[425239470,1781632247000,-500.0,0.00027397,2]
[425239464,1781632247000,-605742.23253022,0.00027397,2]
[425239471,1781632247000,-500.0,0.00027397,2]
[425239448,1781632247000,-150.80231208,0.00027167,7]
[425239447,1781632247000,-184.68957022,0.00027167,7]
[425239414,1781632247000,-184.42270478,0.00027151,7]
[425239441,1781632247000,-174.74244786,0.00027163,7]
[425239465,1781632247000,-2674.22811389,0.00027397,2]
[425239416,1781632247000,-157.20286032,0.00027151,7]
[425239419,1781632247000,-156.31340215,0.00027151,7]
[425239418,1781632247000,-159.82521843,0.00027151,7]
[425239415,1781632247000,-179.13692475,0.00027151,7]
[425239421,1781632247000,-221.40443134,0.00027151,7]
[425239417,1781632247000,-196.17034495,0.00027151,7]
[425239420,1781632247000,-170.11498282,0.00027151,7]
[425239422,1781632247000,-158.67360637,0.00027151,7]
[425239424,1781632247000,-203.26409048,0.00027151,5]
[425239423,1781632247000,-186.87422298,0.00027151,7]
[425239425,1781632247000,-164.49729901,0.00027151,7]
[425239440,1781632247000,-219.9129103,0.00027163,7]
[425239426,1781632247000,-276.71159163,0.00027151,7]
[425239431,1781632247000,-203.69051104,0.00027163,7]
[425239430,1781632247000,-198.96356468,0.00027163,7]
[425239429,1781632247000,-164.46884989,0.00027163,7]
[425239432,1781632247000,-224.79807154,0.00027163,7]
[425239435,1781632247000,-183.2928844,0.00027163,7]
[425239427,1781632247000,-174.60982679,0.00027151,7]
[425239436,1781632247000,-152.37032485,0.00027163,7]
[425239433,1781632247000,-197.12034544,0.00027163,7]
[425239434,1781632247000,-207.47573982,0.00027163,7]
[425239438,1781632247000,-153.95816158,0.00027163,7]
[425239437,1781632247000,-154.3659125,0.00027163,7]
[425239439,1781632247000,-208.8678572,0.00027163,7]
[425239428,1781632247000,-156.53788944,0.00027151,7]
[425239467,1781632247000,-500.0,0.00027397,2]
[425239466,1781632247000,-500.28796441,0.00027397,2]
[425239530,1781632247000,-1000.0,0.00027397,2]
[425239499,1781632247000,-864.92,0.00027397,2]
[425239501,1781632247000,-864.92,0.00027397,2]
[425239503,1781632247000,-864.92,0.00027397,2]
[425239505,1781632247000,-864.92,0.00027397,2]
[425239509,1781632247000,-1000.0,0.00027397,2]
[425239508,1781632247000,-864.92,0.00027397,2]
[425239518,1781632247000,-1000.0,0.00027397,2]
[425239519,1781632247000,-1000.0,0.00027397,2]
[425239512,1781632247000,-1000.0,0.00027397,2]
[425239517,1781632247000,-1000.0,0.00027397,2]
[425239516,1781632247000,-1000.0,0.00027397,2]
[425239510,1781632247000,-1000.0,0.00027397,2]
[425239504,1781632247000,-864.92,0.00027397,2]
[425239520,1781632247000,-1000.0,0.00027397,2]
[425239514,1781632247000,-1000.0,0.00027397,2]
[425239515,1781632247000,-1000.0,0.00027397,2]
[425239521,1781632247000,-1000.0,0.00027397,2]
[425239522,1781632247000,-1000.0,0.00027397,2]
[425239526,1781632247000,-1000.0,0.00027397,2]
[425239524,1781632247000,-1000.0,0.00027397,2]
[425239523,1781632247000,-1000.0,0.00027397,2]
[425239527,1781632247000,-1000.0,0.00027397,2]
[425239525,1781632247000,-1000.0,0.00027397,2]
[425239529,1781632247000,-1000.0,0.00027397,2]
[425239473,1781632247000,-605.65135585,0.00027397,2]
[425239528,1781632247000,-1000.0,0.00027397,2]
[425239513,1781632247000,-1000.0,0.00027397,2]
[425239502,1781632247000,-864.92,0.00027397,2]
[425239511,1781632247000,-1000.0,0.00027397,2]
[425239507,1781632247000,-864.92,0.00027397,2]
[425239483,1781632247000,-926.87,0.00027397,2]
[425239506,1781632247000,-864.92,0.00027397,2]
[425239475,1781632247000,-926.87,0.00027397,2]
[425239476,1781632247000,-926.87,0.00027397,2]
[425239478,1781632247000,-926.87,0.00027397,2]
[425239474,1781632247000,-926.87,0.00027397,2]
[425239479,1781632247000,-926.87,0.00027397,2]
[425239482,1781632247000,-926.87,0.00027397,2]
[425239477,1781632247000,-926.87,0.00027397,2]
[425239481,1781632247000,-926.87,0.00027397,2]
[425239480,1781632247000,-926.87,0.00027397,2]
[425239485,1781632247000,-926.87,0.00027397,2]
[425239484,1781632247000,-926.87,0.00027397,2]
[425239487,1781632247000,-926.87,0.00027397,2]
[425239472,1781632247000,-490.8325641,0.00027397,2]
[425239488,1781632247000,-926.87,0.00027397,2]
[425239498,1781632247000,-864.92,0.00027397,2]
[425239500,1781632247000,-864.92,0.00027397,2]
[425239497,1781632247000,-926.89355088,0.00027397,2]
[425239496,1781632247000,-926.87,0.00027397,2]
[425239486,1781632247000,-926.87,0.00027397,2]
[425239490,1781632247000,-926.87,0.00027397,2]
[425239492,1781632247000,-926.87,0.00027397,2]
[425239494,1781632247000,-926.87,0.00027397,2]
[425239491,1781632247000,-926.87,0.00027397,2]
[425239489,1781632247000,-926.87,0.00027397,2]
[425239495,1781632247000,-926.87,0.00027397,2]
[425239493,1781632247000,-926.87,0.00027397,2]
[425239574,1781632248000,-3000.0,0.00027397,2]
[425239568,1781632248000,-3000.0,0.00027397,2]
[425239570,1781632248000,-3000.0,0.00027397,2]
[425239564,1781632248000,-244.07153067,0.00027397,2]
[425239560,1781632248000,-500.0,0.00027397,2]
[425239563,1781632248000,-500.0,0.00027397,2]
[425239559,1781632248000,-500.0,0.00027397,2]
[425239561,1781632248000,-500.0,0.00027397,2]
[425239571,1781632248000,-3000.0,0.00027397,2]
[425239562,1781632248000,-500.0,0.00027397,2]
[425239566,1781632248000,-1000.0,0.00027397,2]
[425239576,1781632248000,-3000.0,0.00027397,2]
[425239573,1781632248000,-3000.0,0.00027397,2]
[425239579,1781632248000,-3000.0,0.00027397,2]
[425239569,1781632248000,-3000.0,0.00027397,2]
[425239577,1781632248000,-3000.0,0.00027397,2]
[425239578,1781632248000,-3000.0,0.00027397,2]
[425239575,1781632248000,-3000.0,0.00027397,2]
[425239581,1781632248000,-3000.0,0.00027397,2]
[425239580,1781632248000,-3000.0,0.00027397,2]
[425239582,1781632248000,-3000.0,0.00027397,2]
[425239585,1781632248000,-3000.0,0.00027397,2]
[425239586,1781632248000,-3103.92305087,0.00027397,2]
[425239565,1781632248000,-1000.0,0.00027397,2]
[425239572,1781632248000,-3000.0,0.00027397,2]
[425239567,1781632248000,-1000.0,0.00027397,2]
[425239584,1781632248000,-3000.0,0.00027397,2]
[425239558,1781632248000,-500.0,0.00027397,2]
[425239532,1781632248000,-1000.0,0.00027397,2]
[425239531,1781632248000,-1000.0,0.00027397,2]
[425239533,1781632248000,-1000.0,0.00027397,2]
[425239534,1781632248000,-1000.0,0.00027397,2]
[425239536,1781632248000,-1000.0,0.00027397,2]
[425239535,1781632248000,-1000.0,0.00027397,2]
[425239544,1781632248000,-500.0,0.00027397,2]
[425239543,1781632248000,-500.0,0.00027397,2]
[425239537,1781632248000,-1000.0,0.00027397,2]
[425239538,1781632248000,-1000.0,0.00027397,2]
[425239540,1781632248000,-1000.0,0.00027397,2]
[425239541,1781632248000,-326.46693652,0.00027397,2]
[425239557,1781632248000,-500.0,0.00027397,2]
[425239539,1781632248000,-1000.0,0.00027397,2]
[425239556,1781632248000,-500.0,0.00027397,2]
[425239546,1781632248000,-500.0,0.00027397,2]
[425239547,1781632248000,-500.0,0.00027397,2]
[425239550,1781632248000,-500.0,0.00027397,2]
[425239553,1781632248000,-500.0,0.00027397,2]
[425239552,1781632248000,-500.0,0.00027397,2]
[425239555,1781632248000,-500.0,0.00027397,2]
[425239548,1781632248000,-500.0,0.00027397,2]
[425239545,1781632248000,-500.0,0.00027397,2]
[425239551,1781632248000,-500.0,0.00027397,2]
[425239554,1781632248000,-500.0,0.00027397,2]
[425239549,1781632248000,-500.0,0.00027397,2]
[425239542,1781632248000,-500.0,0.00027397,2]
[425239583,1781632248000,-3000.0,0.00027397,2]
[425239601,1781632248000,-300.0,0.00027397,2]
[425239587,1781632248000,-162.68008691,0.00027397,30]
[425239617,1781632248000,-1000.0,0.00027397,2]
[425239622,1781632248000,-1000.0,0.00027397,2]
[425239619,1781632248000,-1000.0,0.00027397,2]
[425239620,1781632248000,-1000.0,0.00027397,2]
[425239624,1781632248000,-1000.0,0.00027397,2]
[425239623,1781632248000,-1000.0,0.00027397,2]
[425239626,1781632248000,-1000.0,0.00027397,2]
[425239625,1781632248000,-1000.0,0.00027397,2]
[425239628,1781632248000,-1000.0,0.00027397,2]
[425239629,1781632248000,-1000.0,0.00027397,2]
[425239627,1781632248000,-1000.0,0.00027397,2]
[425239630,1781632248000,-1000.0,0.00027397,2]
[425239635,1781632248000,-1000.0,0.00027397,2]
[425239634,1781632248000,-1000.0,0.00027397,2]
[425239632,1781632248000,-1000.0,0.00027397,2]
[425239633,1781632248000,-1000.0,0.00027397,2]
[425239636,1781632248000,-1000.0,0.00027397,2]
[425239642,1781632248000,-1000.0,0.00027397,2]
[425239637,1781632248000,-1000.0,0.00027397,2]
[425239638,1781632248000,-1000.0,0.00027397,2]
[425239639,1781632248000,-1000.0,0.00027397,2]
[425239641,1781632248000,-1000.0,0.00027397,2]
[425239643,1781632248000,-1000.0,0.00027397,2]
[425239640,1781632248000,-1000.0,0.00027397,2]
[425239588,1781632248000,-850.172407,0.00027397,2]
[425239621,1781632248000,-1000.0,0.00027397,2]
[425239618,1781632248000,-1000.0,0.00027397,2]
[425239631,1781632248000,-1000.0,0.00027397,2]
[425239614,1781632248000,-1000.0,0.00027397,2]
[425239616,1781632248000,-1000.0,0.00027397,2]
[425239591,1781632248000,-850.172407,0.00027397,2]
[425239593,1781632248000,-500.0,0.00027397,2]
[425239600,1781632248000,-300.0,0.00027397,2]
[425239592,1781632248000,-850.172407,0.00027397,2]
[425239598,1781632248000,-300.0,0.00027397,2]
[425239590,1781632248000,-255.526294,0.00027397,2]
[425239595,1781632248000,-300.0,0.00027397,2]
[425239594,1781632248000,-151.0,0.00027397,2]
[425239597,1781632248000,-300.0,0.00027397,2]
[425239599,1781632248000,-300.0,0.00027397,2]
[425239596,1781632248000,-300.0,0.00027397,2]
[425239603,1781632248000,-175.65698095,0.00027397,2]
[425239589,1781632248000,-850.172407,0.00027397,2]
[425239613,1781632248000,-1000.0,0.00027397,2]
[425239604,1781632248000,-428.2386209,0.00027397,2]
[425239612,1781632248000,-1000.0,0.00027397,2]
[425239611,1781632248000,-1000.0,0.00027397,2]
[425239610,1781632248000,-1000.0,0.00027397,2]
[425239608,1781632248000,-1438.698432,0.00027397,2]
[425239615,1781632248000,-1000.0,0.00027397,2]
[425239609,1781632248000,-1000.0,0.00027397,2]
[425239606,1781632248000,-1438.698432,0.00027397,2]
[425239605,1781632248000,-1438.698432,0.00027397,2]
[425239602,1781632248000,-300.0,0.00027397,2]
[425239607,1781632248000,-1438.698432,0.00027397,2]
[425239682,1781632249000,-1000.0,0.00027397,2]
[425239685,1781632249000,-326.137243,0.00027397,2]
[425239673,1781632249000,-1000.0,0.00027397,2]
[425239672,1781632249000,-1000.0,0.00027397,2]
[425239674,1781632249000,-1000.0,0.00027397,2]
[425239671,1781632249000,-326.137243,0.00027397,2]
[425239676,1781632249000,-1000.0,0.00027397,2]
[425239678,1781632249000,-1000.0,0.00027397,2]
[425239677,1781632249000,-326.137243,0.00027397,2]
[425239684,1781632249000,-1000.0,0.00027397,2]
[425239675,1781632249000,-1000.0,0.00027397,2]
[425239688,1781632249000,-168.132544,0.00027397,2]
[425239689,1781632249000,-1000.0,0.00027397,2]
[425239686,1781632249000,-1000.0,0.00027397,2]
[425239691,1781632249000,-168.132544,0.00027397,2]
[425239690,1781632249000,-1000.0,0.00027397,2]
[425239683,1781632249000,-1000.0,0.00027397,2]
[425239701,1781632249000,-1000.0,0.00027397,2]
[425239702,1781632249000,-1000.0,0.00027397,2]
[425239692,1781632249000,-1000.0,0.00027397,2]
[425239694,1781632249000,-1000.0,0.00027397,2]
[425239693,1781632249000,-1000.0,0.00027397,2]
[425239696,1781632249000,-1000.0,0.00027397,2]
[425239680,1781632249000,-1000.0,0.00027397,2]
[425239687,1781632249000,-1000.0,0.00027397,2]
[425239681,1781632249000,-1000.0,0.00027397,2]
[425239646,1781632249000,-1000.0,0.00027397,2]
[425239670,1781632249000,-1000.0,0.00027397,2]
[425239644,1781632249000,-1000.0,0.00027397,2]
[425239645,1781632249000,-1000.0,0.00027397,2]
[425239648,1781632249000,-1000.0,0.00027397,2]
[425239658,1781632249000,-1000.0,0.00027397,2]
[425239649,1781632249000,-1000.0,0.00027397,2]
[425239647,1781632249000,-1000.0,0.00027397,2]
[425239650,1781632249000,-1000.0,0.00027397,2]
[425239657,1781632249000,-1000.0,0.00027397,2]
[425239652,1781632249000,-1000.0,0.00027397,2]
[425239653,1781632249000,-1000.0,0.00027397,2]
[425239656,1781632249000,-1000.0,0.00027397,2]
[425239654,1781632249000,-1000.0,0.00027397,2]
[425239651,1781632249000,-1000.0,0.00027397,2]
[425239655,1781632249000,-1000.0,0.00027397,2]
[425239659,1781632249000,-1000.0,0.00027397,2]
[425239661,1781632249000,-1000.0,0.00027397,2]
[425239663,1781632249000,-1000.0,0.00027397,2]
[425239665,1781632249000,-1000.0,0.00027397,2]
[425239667,1781632249000,-1000.0,0.00027397,2]
[425239664,1781632249000,-1000.0,0.00027397,2]
[425239668,1781632249000,-1000.0,0.00027397,2]
[425239662,1781632249000,-1000.0,0.00027397,2]
[425239666,1781632249000,-326.137243,0.00027397,2]
[425239660,1781632249000,-1000.0,0.00027397,2]
[425239669,1781632249000,-1000.0,0.00027397,2]
[425239679,1781632249000,-1000.0,0.00027397,2]
[425239698,1781632249000,-168.132544,0.00027397,2]
[425239695,1781632249000,-1000.0,0.00027397,2]
[425239697,1781632249000,-1000.0,0.00027397,2]
[425239732,1781632249000,-300.0,0.00027397,2]
[425239736,1781632249000,-161.23320175,0.00027397,7]
[425239735,1781632249000,-31448.35,0.00027397,10]
[425239733,1781632249000,-3189.322519,0.00027397,2]
[425239728,1781632249000,-151.0,0.00027397,2]
[425239737,1781632249000,-171.20545416,0.00027397,7]
[425239734,1781632249000,-37738.01,0.00027397,10]
[425239739,1781632249000,-25000.0,0.000274,7]
[425239738,1781632249000,-1001.15965791,0.000274,7]
[425239741,1781632249000,-2886.11,0.000274,7]
[425239740,1781632249000,-1944.57,0.000274,7]
[425239743,1781632249000,-151.0,0.000274,7]
[425239742,1781632249000,-25000.0,0.000274,7]
[425239744,1781632249000,-2913.284756,0.000274,7]
[425239745,1781632249000,-2913.284756,0.000274,7]
[425239746,1781632249000,-2913.284756,0.000274,7]
[425239748,1781632249000,-2191.507944,0.000274,7]
[425239747,1781632249000,-2913.284756,0.000274,7]
[425239749,1781632249000,-2191.507944,0.000274,7]
[425239751,1781632249000,-151.0,0.000274,7]
[425239753,1781632249000,-151.0,0.000274,7]
[425239752,1781632249000,-2191.507944,0.000274,7]
[425239755,1781632249000,-204.366753,0.000274,7]
[425239700,1781632249000,-1000.0,0.00027397,2]
[425239750,1781632249000,-2191.507944,0.000274,7]
[425239731,1781632249000,-3189.322519,0.00027397,2]
[425239730,1781632249000,-3189.322519,0.00027397,2]
[425239754,1781632249000,-151.0,0.000274,7]
[425239727,1781632249000,-151.0,0.00027397,2]
[425239729,1781632249000,-3189.322519,0.00027397,2]
[425239704,1781632249000,-1000.0,0.00027397,2]
[425239705,1781632249000,-168.132544,0.00027397,2]
[425239714,1781632249000,-1000.0,0.00027397,2]
[425239706,1781632249000,-1000.0,0.00027397,2]
[425239703,1781632249000,-1000.0,0.00027397,2]
[425239707,1781632249000,-1000.0,0.00027397,2]
[425239709,1781632249000,-1000.0,0.00027397,2]
[425239708,1781632249000,-1000.0,0.00027397,2]
[425239712,1781632249000,-1000.0,0.00027397,2]
[425239711,1781632249000,-1000.0,0.00027397,2]
[425239710,1781632249000,-1000.0,0.00027397,2]
[425239699,1781632249000,-1000.0,0.00027397,2]
[425239715,1781632249000,-1000.0,0.00027397,2]
[425239726,1781632249000,-151.0,0.00027397,2]
[425239722,1781632249000,-999.141507,0.00027397,2]
[425239720,1781632249000,-1000.0,0.00027397,20]
[425239713,1781632249000,-1000.0,0.00027397,2]
[425239716,1781632249000,-1000.0,0.00027397,2]
[425239717,1781632249000,-7004.2,0.00027397,2]
[425239718,1781632249000,-1500.0,0.00027397,2]
[425239721,1781632249000,-562.47,0.00027397,2]
[425239724,1781632249000,-999.141507,0.00027397,2]
[425239725,1781632249000,-999.141507,0.00027397,2]
[425239723,1781632249000,-999.141507,0.00027397,2]
[425239719,1781632249000,-476.10443138,0.00027397,2]
[425239792,1781632250000,-1111.90834699,0.00027612,3]
[425239790,1781632250000,-500.0,0.00027612,2]
[425239791,1781632250000,-273.28033772,0.00027612,2]
[425239785,1781632250000,-500.0,0.00027612,2]
[425239783,1781632250000,-500.0,0.00027612,2]
[425239784,1781632250000,-500.0,0.00027612,2]
[425239787,1781632250000,-500.0,0.00027612,2]
[425239786,1781632250000,-500.0,0.00027612,2]
[425239788,1781632250000,-500.0,0.00027612,2]
[425239789,1781632250000,-500.0,0.00027612,2]
[425239794,1781632250000,-1164.0,0.00027637,2]
[425239795,1781632250000,-667.31,0.00027661,2]
[425239796,1781632250000,-150.0,0.00027661,7]
[425239798,1781632250000,-2674.23,0.00027671,2]
[425239797,1781632250000,-730.0,0.00027671,2]
[425239799,1781632250000,-2000.0,0.00027698,7]
[425239800,1781632250000,-150.0,0.00027818,7]
[425239801,1781632250000,-150.0,0.00027818,7]
[425239802,1781632250000,-391.61844494,0.00027822,2]
[425239803,1781632250000,-500.0,0.00027829,15]
[425239804,1781632250000,-234.77797868,0.00027877,2]
[425239806,1781632250000,-160.0140167,0.00027996,2]
[425239781,1781632250000,-150.0,0.00027545,7]
[425239793,1781632250000,-152.0,0.00027633,7]
[425239782,1781632250000,-150.0,0.00027545,7]
[425239769,1781632250000,-151.0,0.000274,7]
[425239772,1781632250000,-1233.98,0.000274,7]
[425239809,1781632250000,-643.0,0.00028,2]
[425239758,1781632250000,-204.366753,0.000274,7]
[425239757,1781632250000,-204.366753,0.000274,7]
[425239756,1781632250000,-204.366753,0.000274,7]
[425239759,1781632250000,-365.581203,0.000274,7]
[425239761,1781632250000,-365.581203,0.000274,7]
[425239760,1781632250000,-1692.961456,0.000274,7]
[425239763,1781632250000,-365.581203,0.000274,7]
[425239762,1781632250000,-1692.961456,0.000274,7]
[425239764,1781632250000,-1692.961456,0.000274,7]
[425239767,1781632250000,-151.0,0.000274,7]
[425239768,1781632250000,-151.0,0.000274,7]
[425239766,1781632250000,-1692.961456,0.000274,7]
[425239765,1781632250000,-365.581203,0.000274,7]
[425239771,1781632250000,-151.0,0.000274,7]
[425239775,1781632250000,-721.12765534,0.00027511,2]
[425239777,1781632250000,-200.0,0.00027513,2]
[425239779,1781632250000,-2781.82699784,0.00027513,2]
[425239778,1781632250000,-280.03725111,0.00027513,2]